Cogmind - Beta 13 @@@ ROGUE MODE // 2024.05.17 @ 09:33:26 Player: Gabe+Kate4EVR Result: Destroyed by D-53 Grenadier with Mini Grenade Launcher Performance ------------- Evolutions (1) 500 Regions Visited (3) 600 Robots Destroyed (22) 110 Value Destroyed (383) 383 Prototype IDs (7) 140 Alien Tech Used (0) 0 Bonus (0) 0 TOTAL SCORE: 1733 Bonus ------- None Cogmind --------- Core Integrity 0/400 Matter 224/300 Energy 61/100 System Corruption 6% Temperature Cool (5) Movement Core (50) Location -9/Mines Parts ------- > --- POWER (1) -------- (None) > --- PROPULSION (4) --- (None) > --- UTILITY (2) ------ (None) > --- WEAPON (2) ------- Beam Cannon > --- INVENTORY (5) ---- Aluminum Leg Flight Unit Flight Unit Improved Targeting Computer Small Laser Peak State ------------ > --- POWER ------------ Light Ion Engine > --- PROPULSION ------- Aluminum Leg Aluminum Leg Improved Aluminum Leg Improved Aluminum Leg > --- UTILITY ---------- High-capacity Storage Unit Hacking Suite > --- WEAPON ----------- Beam Rifle Particle Cannon > --- INVENTORY -------- Light Ion Engine Aluminum Leg Aluminum Leg Flight Unit Flight Unit Heat Sink Cooling System Medium Storage Unit High-capacity Matter Pod EM Pulse Gun Small Laser Beam Cannon Light Assault Rifle Light Assault Rifle Rocket Launcher Rocket Launcher Rocket Launcher Rocket Launcher Rocket Launcher [Rating: 17] Favorites ----------- Power Light Ion Engine Engine Light Ion Engine Propulsion Aluminum Leg Leg Aluminum Leg Flight Unit Flight Unit Utility Hacking Suite Storage High-capacity Storage Unit Hackware Hacking Suite Weapon Small Laser Energy Gun Small Laser Energy Cannon Particle Cannon Ballistic Gun Light Assault Rifle Launcher Rocket Launcher Build | -11 -10 -9 -9 ------- Run | Yrd Mat Mat Min Slots Evolved 2 | . . 2 . Power . | . . . . Propulsion 2 | . . 2 . Utility . | . . . . Weapon . | . . . . Parts Attached 25 | 7 7 6 5 Power 2 | 1 . 1 . Engine 2 | 1 . 1 . Core . | . . . . Reactor . | . . . . Propulsion 7 | 2 2 2 1 Treads . | . . . . Leg 6 | 2 2 2 . Wheel . | . . . . Hover . | . . . . Flight 1 | . . . 1 Utility 4 | 1 3 . . Device . | . . . . Storage 3 | 1 2 . . Processor . | . . . . Hackware 1 | . 1 . . Protection . | . . . . Artifact . | . . . . Weapon 12 | 3 2 3 4 Energy Gun 3 | 2 . 1 . Energy Cannon 3 | . 1 1 1 Ballistic Gun 3 | 1 1 1 . Ballistic Cannon . | . . . . Launcher 3 | . . . 3 Special Weapon . | . . . . Impact Weapon . | . . . . Slashing Weapon . | . . . . Piercing Weapon . | . . . . Special Melee Weapon . | . . . . Unidentified Prototypes 1 | . . 1 . Parts Lost 12 | . 1 1 10 Power 1 | . . . 1 Propulsion 6 | . 1 1 4 Utility 1 | . . . 1 Weapon 4 | . . . 4 Highest Loss Streak 10 | . 1 1 10 To Critical Strikes . | . . . . Average Slot Usage (%) 88 | . 97 83 46 Engine 12 | . 14 11 5 Leg 26 | . 26 28 11 Storage 12 | . 14 11 8 Hackware 11 | . 13 11 5 Energy Gun 12 | . 14 11 2 Energy Cannon 9 | . 8 10 2 Ballistic Gun 3 | . 5 . 5 Naked Turns . | . . . . Heaviest Build 50 | 10 47 50 49 Greatest Support 46 | 20 20 46 36 Greatest Overweight (x) 3 | . 2 2 3 Average Overweight (x) . | . . 1 . Largest Inventory Capacity 20 | 8 20 20 20 Average Capacity 15 | 6 10 20 17 Most Carried 20 | 2 9 20 20 Average Carried 9 | . 4 14 16 Final Capacity 20 | 8 20 20 5 Final Carried 20 | 1 9 20 5 Class Distribution -------------------- 64% | Mutant 35% | Scavenger-Mutant Dominant Class ---------------- Mutant | -10/Materials Scavenger-Mutant | -9/Materials Scavenger-Mutant | -9/Mines Resources | -11 -10 -9 -9 ----------- Run | Yrd Mat Mat Min Matter Collected 602 | 196 315 91 . Remotely . | . . . . Salvage Created 810 | . 315 450 45 Parts 50 | . 17 33 . Haulers Intercepted 2 | . . 2 . Recyclers Shooed 2 | . 2 . . Parts Field Recycled . | . . . . Retrieved Matter . | . . . . Parts Self-Destructed . | . . . . Prevented . | . . . . Kills | -11 -10 -9 -9 ------- Run | Yrd Mat Mat Min Combat Hostiles Destroyed 32 | . 6 9 17 Guns 10 | . 4 5 1 Cannons 6 | . 2 4 . AOE 16 | . . . 16 Classes Destroyed 8 | . 4 3 1 Hauler 2 | . . 2 . Recycler 3 | . 2 1 . Operator 1 | . 1 . . Watcher 1 | . . 1 . Swarmer 9 | . 3 6 . Grunt 4 | . 3 1 . Sentry 2 | . . 2 . Assembled 17 | . . . 17 Best Kill Streak 17 | . 3 6 17 Combat Bots Only 17 | . 3 6 17 Max Kills in Single Turn 6 | . 1 1 6 Gunslinging . | . . . . Exploded 6 | . . . 6 Melee . | . . . . Uniques/NPCs Destroyed . | . . . . Combat | -11 -10 -9 -9 -------- Run | Yrd Mat Mat Min Hostile Shots Fired 127 | . 42 41 44 Missed 22 | . 10 5 7 Damage Taken 1694 | . 398 436 860 Core 487 | . 82 113 292 Absorbed by Shields . | . . . . Core Remaining (%) 83 | 100 67 . . Volleys Fired 74 | . 42 25 7 Largest 2 | . 2 2 2 Hottest 124 | . 100 124 79 Shots Fired 145 | . 84 50 11 Gun 90 | . 59 25 6 Cannon 51 | . 25 25 1 Launcher 4 | . . . 4 Special . | . . . . Kinetic 21 | . 17 . 4 Thermal 120 | . 67 50 3 Explosive 4 | . . . 4 Electromagnetic . | . . . . Robot Hit Streak 9 | . 7 9 3 Robot Miss Streak 4 | . 4 2 2 Penetration Max . | . . . . Secondary Targets . | . . . . Shots Hit Robots 86 | . 49 32 5 Core Hits 60 | . 18 15 27 Critical Kills . | . . . . Critical Parts Destroyed . | . . . . Critical Strikes 1 | . . 1 . Burn 1 | . . 1 . Melee Attacks . | . . . . Impact . | . . . . Slashing . | . . . . Piercing . | . . . . Sneak Attacks . | . . . . Combat Hostiles . | . . . . Follow-up Attacks . | . . . . Damage Inflicted 2251 | . 612 584 1055 Guns 625 | . 348 216 61 Cannons 632 | . 264 368 . Explosions 994 | . . . 994 Melee . | . . . . Ramming . | . . . . Kinetic 110 | . 78 . 32 Thermal 1147 | . 534 584 29 Explosive 994 | . . . 994 Electromagnetic . | . . . . Impact . | . . . . Slashing . | . . . . Piercing . | . . . . Highest Corruption 6 | . . 2 6 Average Corruption 2 | . . 2 3 Corruption Purged . | . . . . Corruption Blocked . | . . . . Effects 3 | . . 2 1 Message Errors 2 | . . 2 . Matter Fused 1 | . . . 1 Overload Shots . | . . . . Overflow Damage 26 | . 9 . 17 Projectiles 9 | . 9 . . Explosions 17 | . . . 17 Melee . | . . . . Knockbacks . | . . . . Impact . | . . . . Kinetic . | . . . . Secondary . | . . . . Self-Inflicted Damage 75 | . . . 75 Shots 2 | . . . 2 Rammed . | . . . . Targets Rammed . | . . . . Kicked . | . . . . Crushed . | . . . . Highest Temperature 387 | . 387 384 9 Average Temperature 116 | . 100 144 5 Received Heat Transfer 344 | . 189 135 20 Effects 1 | . 1 . . Energy Bleed 1 | . 1 . . Siege Activations . | . . . . Robots Corrupted . | . . . . Combat Hostiles . | . . . . Parts Fried . | . . . . Impact Corruptions . | . . . . Robots Melted . | . . . . Combat Hostiles . | . . . . Parts Melted 4 | . 2 2 . Heat Transferred 2537 | . 1180 1283 74 Parts Sabotaged . | . . . . Parts Stolen . | . . . . Parts Stripped . | . . . . Power Chain Reactions . | . . . . Alert | -11 -10 -9 -9 ------- Run | Yrd Mat Mat Min Peak Influence 204 | . 161 204 13 Initial 13 | . . 13 13 Average 47 | . 51 51 5 Maximum Alert Level 1 | . . 1 . Low Security (%) 99 | 100 100 99 100 Level 1 . | . . . . Level 2 . | . . . . Level 3 . | . . . . Level 4 . | . . . . Level 5 . | . . . . High Security . | . . . . Max Security . | . . . . Squads Dispatched 2 | . 1 1 . Investigation . | . . . . Extermination . | . . . . Reinforcement 2 | . 1 1 . Assault . | . . . . Garrison . | . . . . Intercept . | . . . . Searches Triggered . | . . . . Construction Impeded . | . . . . Haulers Reinforced . | . . . . Active Scanning Responses . | . . . . Cargo Convoy Interrupts . | . . . . Stealth | -11 -10 -9 -9 --------- Run | Yrd Mat Mat Min Distress Signals 1 | . 1 . . Communications Jammed . | . . . . Distress Signals . | . . . . Times Spotted 47 | . 11 14 22 Peak Tracking Total 20 | . 4 4 20 Tactical Retreats . | . . . . Traps | -11 -10 -9 -9 ------- Run | Yrd Mat Mat Min Traps Triggered 1 | . . 1 . Indirectly . | . . . . Trap Hack Attempts . | . . . . Triggered . | . . . . Disarmed . | . . . . Reprogrammed . | . . . . Reused . | . . . . Traps Extracted . | . . . . Installed . | . . . . Triggered . | . . . . Machines | -11 -10 -9 -9 ---------- Run | Yrd Mat Mat Min Machines Disabled . | . . . . Max in Single Turn . | . . . . Machines Repaired . | . . . . Machines Dismantled . | . . . . Machines Sabotaged . | . . . . Overloaded Fab Kills . | . . . . Hacking | -11 -10 -9 -9 --------- Run | Yrd Mat Mat Min Machines Accessed 4 | . 2 2 . Terminals 4 | . 2 2 . Fabricators . | . . . . Repair Stations . | . . . . Recycling Units . | . . . . Scanalyzers . | . . . . Garrison Access . | . . . . Total Hacks 9 | . 3 6 . Successful 5 | . 2 3 . Failed 4 | . 1 3 . Catastrophic . | . . . . Database Lockouts . | . . . . Manual 5 | . 1 4 . Terminals 9 | . 3 6 . Fabricators . | . . . . Repair Stations . | . . . . Recycling Units . | . . . . Scanalyzers . | . . . . Garrison Access . | . . . . Terminal Hacks 5 | . 2 3 . Prototype ID Bank 3 | . 1 2 . Unreport Threat 1 | . . 1 . Hauler Manifests 1 | . 1 . . Fabricator Hacks . | . . . . Repair Station Hacks . | . . . . Recycling Unit Hacks . | . . . . Scanalyzer . | . . . . Garrison Access Hacks . | . . . . Unauthorized Hacks . | . . . . Terminals . | . . . . Fabricators . | . . . . Repair Stations . | . . . . Recycling Units . | . . . . Scanalyzers . | . . . . Garrison Access . | . . . . Data Cores Recovered 1 | . 1 . . Used . | . . . . Hacking Detections 2 | . . 2 . Full Trace Events . | . . . . Feedback Events . | . . . . Feedback Blocked . | . . . . Robot Schematics Acquired . | . . . . Robots Built . | . . . . Authchips . | . . . . Time . | . . . . Total Robot Build Rating . | . . . . Part Schematics Acquired . | . . . . Parts Built . | . . . . Authchips . | . . . . Time . | . . . . Total Part Build Rating . | . . . . Parts Repaired . | . . . . Time . | . . . . Parts Recycled . | . . . . Recycled Matter . | . . . . Retrieved Matter . | . . . . Retrieved Components . | . . . . Parts Scanalyzed . | . . . . Part Schematics Acquired . | . . . . Parts Damaged . | . . . . Bothacking | -11 -10 -9 -9 ------------ Run | Yrd Mat Mat Min Used RIF Installer . | . . . . Robots Hacked . | . . . . Non-combat . | . . . . Combat . | . . . . Robot Hacks Applied . | . . . . Relay Couplers Released . | . . . . Fabnet Peak Effective % . | . . . . Robots Rewired . | . . . . Allies Hacked . | . . . . Hacks Repelled . | . . . . Allies | -11 -10 -9 -9 -------- Run | Yrd Mat Mat Min Total Allies . | . . . . Largest Group . | . . . . Highest-Rated Group . | . . . . Highest-Rated Ally . | . . . . Total Orders . | . . . . Ally Attacks . | . . . . Total Damage . | . . . . Kills . | . . . . Allies Corrupted . | . . . . Allies Melted . | . . . . Intel | -11 -10 -9 -9 ------- Run | Yrd Mat Mat Min Robot Analysis Total . | . . . . Derelict Logs Recovered . | . . . . Drone Launches . | . . . . Drone Recoveries . | . . . . Exploration | -11 -10 -9 -9 ------------- Run | Yrd Mat Mat Min Turns Passed 1189 | 71 513 566 39 Spaces Moved 539 | 54 274 199 12 Core 8 | 6 . . 2 Treads . | . . . . Legs 526 | 48 274 199 5 Wheels . | . . . . Hover . | . . . . Flight 5 | . . . 5 Fastest Speed 40 | 50 120 190 40 Average Speed 168 | 112 133 233 115 Slowest Speed 330 | 120 260 260 330 Overloaded Moves . | . . . . Propulsion Burnouts . | . . . . Robots Hopped . | . . . . Cave-ins Triggered . | . . . . Exploration Rate (%) 17 | 3 37 19 11 Regions Visited 3 Branch Regions 1 Pre-discovered Areas . | . . . . Known Exits Taken . | . . . . Unknown Exits Taken 3 | 1 1 1 . Scrap Searched . | . . . . Spaces Dug . | . . . . Terrain Destroyed 20 | . . . 20 Melee . | . . . . Projectile . | . . . . AOE 20 | . . . 20 Terrain Rammed . | . . . . Walls Destroyed . | . . . . Machines Disabled . | . . . . Actions | -11 -10 -9 -9 --------- Run | Yrd Mat Mat Min Total 679 | 62 339 253 25 Wait 14 | . 11 3 . Move 536 | 53 273 198 12 Hop . | . . . . Pick Up 20 | 1 5 14 . Fast Attach 12 | 6 2 3 1 Attach 4 | 1 . . 3 Detach 1 | 1 . . . Swap 9 | . 5 3 1 Drop 9 | . 1 7 1 Fire 74 | . 42 25 7 Melee . | . . . . Ram . | . . . . Kick . | . . . . Crush . | . . . . Escape Stasis . | . . . . Rewire . | . . . . Trap . | . . . . Miscellaneous . | . . . . Route ------- -11/Scrapyard -10/Materials (discovered 2 exits: *Mat / [*Min]) -9/Materials -9/Mines History --------- Turn | Location | Event 10 | -11/Scrapyard | Discovered new exit (range 15) 72 | -11/Scrapyard | Entered Materials 96 | -10/Materials | Discovered new exit (range 13) 303 | -10/Materials | Build established: Mutant 514 | -10/Materials | Discovered new exit (range 13) 585 | -10/Materials | Entered another Materials area 585 | -9/Materials | Evolved 2 slots: Propulsion x2 1055 | -9/Materials | Build established: Scavenger-Mutant 1079 | -9/Materials | Discovered new exit (range 16) 1151 | -9/Materials | Entered Mines 1152 | -9/Mines | Assembled infested the area 1176 | -9/Mines | Core integrity fell below 50% 1181 | -9/Mines | Found the Drone Emporium 1185 | -9/Mines | Core integrity fell below 20% 1190 | -9/Mines | Destroyed by D-53 Grenadier with Mini Grenade Launcher Last Messages --------------- 01180_ as-35085 destroyed. 01181_ 5J-OCA(g): "Well that was anticlimactic. Heard you outside and thought you were from the Merchants Guild. I haven't even officially opened my Drone Emporium yet but am totally ready to tell them where they can shove that C&D." 01181_ as-98872 destroyed. 01183_ 5J-OCA(g): "I'm a fan of the free market. Free drones for all! No strings attached!" 01183_ Dropped Hcp. Storage Unit. 01183_ SHOP.Sys disabled. 01184_ Acquired Flight Unit. 01185_ Machine disabled. 01185_ U-05 Engineer lays Concrete. 01186_ The unstable cave ceiling collapses. 01186_ Cooling System crushed. 01186_ U-05 Engineer lays Concrete. 01187_ 5J-OCA(g) destroyed. 01187_ U-05 Engineer lays Concrete. 01188_ Flight Unit destroyed. 01188_ U-05 Engineer destroyed. Map ----- +----------------------------------------------------+ | ?????????????????????????????????????????????????? | | ?????????????????????????????????????????????????? | | ?????????????????????????????????????????????????? | | ?????????????????????????????????????????????????? | | ?????????????????????????????????????????????????? | | ?????????????????????????????????????????????????? | | ?????????????????????????????????????????????????? | | ?????????????????????????????????????????????????? | | ?????????????????????????????????????????????????? | | ?????????????????????????????????????????????????? | | ?????????????????????????????????????????????????? | | ?????????????????????????????????????????????????? | | ?????????????????????????????????????????????????? | | ?????????????????????????????????????????????????? | | ?????????????????????????????????????????????????? | | ?????????????????????????????????????????????????? | | ?????????????????????????#### ???????????????????? | | ???????????????????????## ???????????????????? | | ???????????????????????# ???????????????????? | | ???????????????????????# ????????????????????? | | ??????????????????###### ?????????????????????? | | ????????????????#?# # ####### #?????????????? | | ??????????????#?# # % ??????????????? | | ????????????##""# ! ?????????????????? | | ????????????#" dd #???????????????????? | | ????????????#" ??"= = @ #???????????????????? | | ????????????#"! "% #??????????????????? | | ????????????#" #??????????????????? | | ????????????##" ##?????????????????? | | ????????????### ##????????????????? | | ????? ! #????????????????? | | ?????????######## =! #????????????????? | | ????????????????# [ ##????????????????? | | ???????????? ] #?????????????????? | | ??????????? ## ##?????????????????? | | ???????????#########?## ##??????????????????? | | ??????????????????????# ##???????????????????? | | ??????????????????????# #????????????????????? | | ??????????????????????## ##????????????????????? | | ???????????????????????#####?????????????????????? | | ?????????????????????????????????????????????????? | | | | | | | | | | | | | | | | | | | +----------------------------------------------------+ Best States ------------- Heat Dissipation 28 Energy Generation 10 Energy Capacity 125 Matter Stores 300 Matter Capacity 300 Sight Range 16 Terrain Scan Density 10 Evasion (%) 55 Offensive Hacking 10 Item Schematics ----------------- None Robot Schematics ------------------ None Fabricated ------------ Nothing Alien Tech Used ----------------- None Achievements -------------- None Challenges ------------ None Game ------ Seed DiametricStealthCycler Manual? 0 Play Time 00:09:23 Cumulative 168.2 hours Start 2024.05.17 @ 09:22:14 End 2024.05.17 @ 09:33:26 Sessions 1 Manual Loads 0 Difficulty Rogue Special Mode None Game No. 335 Rogue 335 Adventurer 0 Explorer 0 Win Type - Total 0 Types 0/0/0/0/0/0/0/0/0 Lore% 46 Gallery% 63 Achievement% 45 Wizard Run 0 Options --------- Layout 0 ASCII 0 Keyboard 1 Movement Numpad Keybinds 0 Fullscreen 2 Font 18/X11 Map View 76x50 Zoom Use 0% Tactical HUD 1 Map Filters NONE Filters NONE Steam 1 RUN: ec3e3a8c-dc52-4233-b53c-4a3a3320c077